bitfinex/quotes_ETHUSD_20250628
["timestamp","ask_amount","ask_price","bid_price","bid_amount"]
[1751070719698,8.14504344,2420.3,2420.2,0.002]
[1751070719992,12.5007192,2420.3,2420.2,0.002]
[1751070720691,5.8347192,2420.3,2420.2,0.002]
[1751070720896,5.8347192,2420.3,2420.2,0.7665]
[1751070720897,12.5007192,2420.3,2420.2,0.7665]
[1751070721099,12.5017192,2420.3,2420.2,0.7665]
[1751070721263,5.8347192,2420.3,2420.2,0.7665]
[1751070723971,12.4997192,2420.3,2420.2,0.7665]
[1751070724292,4.1317192,2420.3,2420.2,0.7665]
[1751070724500,5.8347192,2420.3,2420.2,0.7665]
[1751070726374,1.703,2420.3,2420.2,0.7665]
[1751070726569,1.9094,2420.3,2420.2,0.7665]
[1751070727079,0.2064,2420.3,2420.2,0.7665]
[1751070730417,9.918,2420.7,2420.3,0.7904]
[1751070730712,0.2064,2420.6,2420.3,0.7904]
[1751070732198,4.33761327,2420.6,2420.3,0.7904]
[1751070732399,4.13151349,2420.5,2420.3,0.7904]
[1751070732595,4.33769244,2420.6,2420.3,0.7904]
[1751070733994,4.33769244,2420.6,2420.2,0.002]
[1751070733995,4.1317192,2420.3,2420.2,0.002]
[1751070734611,1.703,2420.3,2420.2,0.002]
[1751070735017,1.703,2420.3,2420.2,0.8305]
[1751070735694,0.2064,2420.5,2420.2,0.8305]
[1751070736025,1.9094,2421.0,2420.6,4.13112372]
[1751070736216,1.9094,2421.0,2420.7,0.8285]
[1751070736617,6.04000304,2421.0,2420.7,0.8285]
[1751070736795,1.9094,2421.0,2420.7,0.8285]
[1751070739650,6.03995795,2421.0,2420.7,0.8285]
[1751070739924,1.9094,2421.0,2420.7,0.8285]
[1751070740433,6.03992557,2421.0,2420.7,0.8285]
[1751070740789,4.1307878,2420.9,2420.7,0.8285]
[1751070742808,6.0399988,2421.0,2420.7,0.8285]
[1751070743009,4.13071141,2420.9,2420.7,0.8285]
[1751070744727,1.9094,2421.0,2420.7,0.8285]
[1751070744900,6.03992932,2421.0,2420.7,0.8285]
[1751070746530,0.2064,2421.0,2420.7,0.8285]
[1751070746731,1.704,2421.1,2420.8,0.2064]
[1751070746923,1.704,2421.1,2420.8,4.33725063]
[1751070747120,1.704,2421.1,2420.9,0.7921]
[1751070751464,0.2064,2421.2,2420.9,0.7921]
[1751070751624,1.704,2421.4,2420.7,10.0]
[1751070751826,1.704,2421.4,2421.2,5.12859674]
[1751070752041,1.704,2421.4,2421.3,4.1300128]
[1751070752344,1.704,2421.4,2421.3,4.3364128]
[1751070753115,9.918,2421.7,2421.4,0.8269]
[1751070753116,11.622,2421.7,2421.4,0.8269]
[1751070753652,11.622,2421.7,2421.4,4.95666083]
[1751070753653,1.704,2421.7,2421.4,4.95666083]
[1751070753817,1.704,2421.7,2421.4,4.95659378]
[1751070754019,1.704,2421.7,2421.5,4.12963977]
[1751070754430,1.704,2421.9,2421.5,4.12963977]
[1751070754630,1.704,2421.9,2421.6,0.2064]
[1751070755255,1.704,2421.9,2421.6,4.33586333]
[1751070755920,1.704,2421.9,2421.7,0.8004]
[1751070756355,1.704,2421.9,2421.7,4.92967927]
[1751070757042,1.704,2421.9,2421.7,0.8004]
[1751070757348,1.704,2421.9,2421.7,4.92971463]
[1751070757549,0.002,2422.0,2421.8,0.2064]
[1751070757753,0.002,2422.0,2421.9,4.12898963]
[1751070757950,0.002,2422.0,2421.8,4.33548183]
[1751070758448,0.002,2422.0,2421.8,0.2064]
[1751070759256,0.002,2422.0,2421.8,4.33554177]
[1751070759554,0.002,2422.0,2421.8,0.2064]
[1751070760065,0.002,2422.0,2421.9,0.8208]
[1751070764355,0.002,2422.0,2421.8,0.2064]
[1751070764553,0.002,2422.0,2421.8,1.0173]
[1751070765429,4.13082897,2422.0,2421.8,0.2064]
[1751070765652,0.002,2422.0,2421.8,0.2064]
[1751070766359,0.002,2422.0,2421.8,0.9606]
[1751070767661,4.12898963,2421.9,2421.8,0.2064]
[1751070767851,4.12898963,2421.9,2421.6,0.7862]
[1751070767852,4.12898963,2421.9,2421.7,0.2064]
[1751070768454,4.12898963,2421.9,2421.5,0.2064]
[1751070768455,1.30342616,2421.9,2421.5,0.2064]
[1751070768657,0.2064,2421.9,2421.5,0.2064]
[1751070768958,4.12917135,2421.8,2421.5,0.2064]
[1751070769160,4.33547346,2421.9,2421.5,0.2064]
[1751070770658,4.33547346,2421.9,2421.6,0.7862]
[1751070770866,4.12916114,2421.8,2421.6,0.7862]
[1751070772259,0.2064,2421.9,2421.6,4.91559605]
[1751070772456,0.002,2422.0,2421.6,5.12199605]
[1751070773023,0.002,2422.0,2421.7,4.12923139]
[1751070773361,0.002,2422.0,2421.8,0.9734]
[1751070774464,0.002,2422.0,2421.8,5.1024275]
[1751070775432,0.002,2422.0,2421.8,4.8960275]
[1751070775763,0.002,2422.0,2421.9,0.2064]
[1751070777129,4.13081915,2422.0,2421.9,0.2064]
[1751070777363,5.03806499,2422.0,2421.6,0.2064]
[1751070777570,4.13081915,2422.0,2421.6,0.2064]
[1751070777779,4.12915366,2421.9,2421.6,0.2064]
[1751070778082,4.12898963,2421.9,2421.6,0.2064]
[1751070778249,4.13088865,2422.0,2421.6,0.2064]
[1751070778874,4.12905207,2421.9,2421.6,0.2064]
[1751070779974,4.13090618,2422.0,2421.6,0.2064]
[1751070780352,0.002,2422.0,2421.6,4.33587426]
[1751070781304,0.002,2422.0,2421.7,4.12931515]
[1751070781446,0.002,2422.0,2421.6,4.33582819]
[1751070782259,0.002,2422.0,2421.6,0.2064]
[1751070783490,0.002,2422.0,2421.6,4.33588332]
[1751070784888,0.002,2422.0,2421.8,0.8107]
[1751070785887,0.002,2422.0,2421.9,0.2064]
[1751070798102,0.002,2422.0,2421.9,4.33538963]
[1751070799103,0.002,2422.0,2421.9,11.00538963]
[1751070799706,0.002,2422.0,2421.9,6.8764]
[1751070802010,0.002,2422.0,2421.9,11.00538963]
[1751070803238,0.002,2422.0,2421.9,6.8764]
[1751070803440,0.002,2422.0,2421.9,0.2064]
[1751070803613,0.002,2422.0,2421.9,6.8744]
[1751070808858,0.002,2422.0,2421.9,0.2064]
[1751070809148,0.002,2422.0,2421.8,6.665]
[1751070809347,0.002,2422.0,2421.8,6.8714]
[1751070809547,4.13084514,2422.0,2421.8,6.8714]
[1751070809747,0.66584451,2422.0,2421.8,6.8714]
[1751070809941,0.002,2422.0,2421.8,6.8714]
[1751070812122,0.002,2422.0,2421.8,11.82642865]
[1751070812317,0.002,2422.0,2421.9,4.12898963]
[1751070812534,0.002,2422.0,2421.9,4.33538963]
[1751070813451,0.002,2422.0,2421.9,0.2064]
[1751070815959,0.002,2422.0,2421.9,4.33538963]
[1751070817772,0.002,2422.0,2421.9,4.88538963]
[1751070826981,0.002,2422.0,2421.9,5.66768963]
[1751070831092,0.002,2422.0,2421.9,4.88538963]
[1751070834091,0.002,2422.0,2421.9,6.8704]
[1751070834794,0.002,2422.0,2421.9,0.2064]
[1751070834971,4.88851915,2422.0,2421.9,0.2064]
[1751070835161,4.12900548,2421.9,2421.5,10.0]
[1751070835366,0.7577,2421.8,2421.6,6.8714]
[1751070836494,4.12933063,2421.7,2421.6,0.2064]
[1751070836691,4.12933063,2421.7,2421.6,6.8724]
[1751070837086,4.12933063,2421.7,2421.6,0.2064]
[1751070839771,0.7577,2421.8,2421.6,0.2064]
[1751070840512,4.12933063,2421.7,2421.6,0.2064]
[1751070840823,4.12933063,2421.7,2421.5,6.665]
[1751070841314,5.42470928,2421.8,2421.5,6.665]
[1751070841472,4.12934762,2421.7,2421.5,6.665]
[1751070842677,4.88727169,2421.5,2421.4,0.2064]
[1751070842889,0.7576,2421.5,2421.3,6.666]
[1751070843983,4.88728917,2421.5,2421.3,6.666]
[1751070844385,4.12984224,2421.4,2421.3,6.666]
[1751070844704,4.12984224,2421.4,2421.2,6.666]
[1751070844867,4.88778338,2421.2,2420.3,3.002]
[1751070845071,4.88838835,2420.9,2420.3,7.13362857]
[1751070845305,0.7576,2420.9,2420.4,0.2064]
[1751070845608,4.8891485,2420.4,2420.3,3.002]
[1751070845779,4.8891485,2420.4,2420.3,0.002]
[1751070846292,0.7576,2420.4,2420.3,0.002]
[1751070846497,4.8891485,2420.4,2420.3,0.002]
[1751070847473,0.7576,2420.4,2420.3,0.002]
[1751070848313,4.8891485,2420.4,2420.3,0.002]
[1751070848974,0.7576,2420.4,2420.3,0.002]
[1751070851201,4.8891485,2420.4,2420.3,0.002]
[1751070851402,0.7576,2420.4,2420.3,0.002]
[1751070853900,0.2064,2420.5,2420.3,0.002]
[1751070854438,2.5044,2420.6,2420.3,4.13361335]
[1751070854597,2.5044,2420.6,2420.3,0.2084]
[1751070854930,4.13140764,2420.5,2420.3,0.002]
[1751070856533,7.73298764,2420.6,2420.3,0.002]
[1751070858434,3.60169468,2420.6,2420.3,0.002]
[1751070858614,2.5044,2420.6,2420.3,0.002]
[1751070859001,0.2064,2420.7,2420.3,4.13371388]
[1751070859204,1.0292,2420.8,2420.3,4.34011388]
[1751070859713,5.16010482,2420.8,2420.3,4.34011388]
[1751070860443,5.16010482,2420.8,2420.4,0.7807]
[1751070860610,6.2597741,2420.8,2420.4,0.7807]
[1751070862039,2.12886928,2420.8,2420.3,0.2084]
[1751070862344,4.131322,2420.6,2420.3,0.2084]
[1751070862933,4.13111662,2420.7,2420.3,0.2084]
[1751070863528,4.13124009,2420.6,2420.3,0.2084]
[1751070864357,4.13111273,2420.7,2420.3,0.2084]
[1751070864645,6.07792315,2420.7,2420.3,0.2084]
[1751070866250,4.1312196,2420.6,2420.3,0.2084]
[1751070866612,6.07793255,2420.7,2420.3,0.2084]
[1751070869350,4.13122513,2420.6,2420.3,0.2084]
[1751070869850,4.13122513,2420.6,2420.3,0.002]
[1751070869851,4.90250255,2420.5,2420.3,0.002]
[1751070870018,6.73768208,2420.5,2420.3,0.002]
[1751070870219,4.1315485,2420.4,2420.3,0.002]
[1751070876662,6.73771677,2420.5,2420.3,0.002]
[1751070882477,4.13143724,2420.5,2420.3,0.002]
[1751070882683,4.13139329,2420.5,2420.3,0.002]
[1751070888596,4.1315485,2420.4,2420.3,0.002]
[1751070888801,4.13144095,2420.5,2420.3,0.002]
[1751070890097,5.84727928,2420.6,2420.3,0.002]
[1751070891184,1.716,2420.9,2420.3,0.002]
[1751070891359,4.13121885,2420.6,2420.4,0.2064]
[1751070892801,4.13137781,2420.5,2420.3,0.002]
[1751070893002,4.1315485,2420.4,2420.3,0.002]
[1751070894428,0.758,2420.6,2420.3,0.002]
[1751070894578,4.8893319,2420.6,2420.3,0.002]
[1751070894778,4.64110803,2420.5,2420.3,0.002]
[1751070897584,0.50957319,2420.5,2420.3,0.002]
[1751070898908,4.64098797,2420.5,2420.3,0.002]
[1751070901586,0.50957319,2420.5,2420.3,0.002]
[1751070901788,4.13127876,2420.6,2420.3,0.002]
[1751070902288,4.33753502,2420.7,2420.4,0.8002]
[1751070902476,1.713,2420.6,2420.4,0.8002]
[1751070904109,0.2064,2420.7,2420.4,0.8002]
[1751070904292,5.84404584,2420.7,2420.4,0.8002]
[1751070904696,6.86216671,2420.7,2420.4,0.8002]
[1751070907816,4.1312965,2420.6,2420.4,0.8002]
[1751070908715,6.86221866,2420.7,2420.4,0.8002]
[1751070910285,2.73112087,2420.7,2420.4,0.8002]
[1751070910911,6.86218053,2420.7,2420.4,0.8002]
[1751070913804,4.13120896,2420.6,2420.3,0.2084]
[1751070916085,6.86222983,2420.7,2420.3,0.2084]
[1751070916528,4.13123405,2420.6,2420.3,0.2084]
[1751070920721,6.86223598,2420.7,2420.3,0.2084]
[1751070921221,4.13125274,2420.6,2420.3,0.2084]
[1751070923231,4.1314667,2420.5,2420.3,0.002]
[1751070923602,4.1315485,2420.4,2420.3,0.002]
[1751070923804,0.9486702,2420.6,2420.3,0.002]
[1751070923996,5.07991594,2420.6,2420.3,0.002]
[1751070924397,4.13139647,2420.5,2420.3,0.002]
[1751070924990,5.07994299,2420.6,2420.3,0.002]
[1751070925328,4.13139851,2420.5,2420.3,0.002]
[1751070926832,4.1315485,2420.4,2420.3,0.002]
[1751070929442,4.1314668,2420.5,2420.3,0.002]
[1751070929642,5.07997336,2420.6,2420.3,0.002]
[1751070932948,4.13138242,2420.5,2420.3,0.002]
[1751070937241,5.07995244,2420.6,2420.3,0.002]
[1751070940155,4.13140257,2420.5,2420.3,0.002]
[1751070943755,0.9486702,2420.6,2420.3,0.002]
[1751070944155,5.07987798,2420.6,2420.3,0.002]
[1751070945632,4.13137791,2420.5,2420.3,0.002]
[1751070948164,4.13137781,2420.5,2420.3,0.002]
[1751070951533,2.6536702,2420.6,2420.3,0.002]
[1751070951732,6.78496711,2420.6,2420.3,0.002]
[1751070952139,2.6536702,2420.6,2420.3,0.002]
[1751070952344,1.705,2420.6,2420.4,0.7517]
[1751070952542,4.13146901,2420.5,2420.3,0.002]
[1751070952985,9.29441444,2420.4,2420.3,0.002]
[1751070953171,11.68628654,2420.4,2420.3,0.002]
[1751070954669,13.9018142,2420.4,2420.3,0.002]
[1751070957265,6.5234206,2420.4,2420.3,0.002]
[1751070957466,8.2284206,2420.4,2420.3,0.002]
[1751070959363,15.6068142,2420.4,2420.3,0.002]
[1751070960466,22.2758142,2420.4,2420.3,0.002]
[1751070961756,32.2758142,2420.4,2420.3,0.002]
[1751070966020,62.8258142,2420.4,2420.3,0.002]
[1751070968977,32.8258142,2420.4,2420.3,0.002]
[1751070969182,62.8258142,2420.4,2420.3,0.002]
[1751070969817,4.3381192,2420.3,2420.2,0.002]
[1751070970020,14.9455314,2420.0,2419.9,0.001]
[1751070970316,28.992925,2420.0,2419.9,0.001]
[1751070970916,58.992925,2420.0,2419.9,0.001]
[1751070971680,59.30385176,2420.0,2419.9,0.001]
[1751070971986,63.317176,2420.0,2419.9,0.001]
[1751070974025,63.867176,2420.0,2419.9,0.001]
[1751070974824,63.55624924,2420.0,2419.9,0.001]
[1751070978098,33.55624924,2420.0,2419.9,0.001]
[1751070978300,63.55624924,2420.0,2419.9,0.001]
[1751070979100,33.55624924,2420.0,2419.9,0.001]
[1751070979430,63.55624924,2420.0,2419.9,0.001]
[1751070979931,56.88724924,2420.0,2419.9,0.001]
[1751070980136,65.26424924,2420.0,2419.9,0.001]
[1751070982102,64.71424924,2420.0,2419.9,0.001]
[1751070984805,34.71424924,2420.0,2419.9,0.001]
[1751070985005,64.71424924,2420.0,2419.9,0.001]
[1751070988041,34.71424924,2420.0,2419.9,0.001]
[1751070991221,33.90094924,2420.0,2419.9,0.001]
[1751070995554,63.90094924,2420.0,2419.9,0.001]
[1751070997034,33.90094924,2420.0,2419.9,0.001]
[1751070997236,63.90094924,2420.0,2419.9,0.001]
[1751070997445,64.65504924,2420.0,2419.9,0.001]
[1751071001950,33.90094924,2420.0,2419.9,0.001]
[1751071003468,63.90094924,2420.0,2419.9,0.001]
[1751071007376,33.90094924,2420.0,2419.9,0.001]
[1751071007965,63.90094924,2420.0,2419.9,0.001]
[1751071009272,64.72654924,2420.0,2419.9,0.001]
[1751071011284,14.13274372,2419.7,2419.6,0.002]
[1751071011449,28.18213732,2419.7,2419.6,0.002]
[1751071012078,29.88713732,2419.7,2419.6,0.002]
[1751071016275,15.83774372,2419.7,2419.6,0.7602]
[1751071024590,23.21613732,2419.7,2419.6,0.7602]
[1751071035531,9.0833936,2419.7,2419.6,0.7602]
[1751071035835,13.21613732,2419.7,2419.6,0.7602]
[1751071040743,1.705,2419.7,2419.6,0.7602]
[1751071040949,1.9114,2419.7,2419.6,0.7602]
[1751071042728,1.705,2419.7,2419.6,0.7602]
[1751071044039,9.919,2420.2,2419.6,0.7602]
[1751071044040,23.13429743,2420.2,2419.8,0.7964]
[1751071044248,4.1321791,2420.1,2419.8,0.7964]
[1751071044810,4.13274372,2419.7,2419.6,0.7984]
[1751071045146,11.51113732,2419.7,2419.6,0.002]
[1751071046731,12.26393732,2419.7,2419.6,0.002]
[1751071046936,13.96893732,2419.7,2419.6,0.002]
[1751071047114,23.96893732,2419.7,2419.6,0.002]
[1751071047315,34.11498864,2419.7,2419.6,0.002]
[1751071053546,14.13274372,2419.7,2419.6,0.002]
[1751071053756,22.50574372,2419.7,2419.6,0.002]
[1751071055664,15.83674372,2419.7,2419.6,0.002]
[1751071059277,11.704,2419.7,2419.6,0.002]
[1751071059598,1.704,2419.7,2419.6,0.002]
[1751071060576,5.83674372,2419.7,2419.6,0.002]
[1751071061175,11.51102898,2419.8,2419.6,0.002]
[1751071061367,1.704,2419.7,2419.6,0.002]
[1751071062677,0.2064,2419.7,2419.6,0.002]
[1751071062977,1.9104,2420.0,2419.6,4.34126014]
[1751071063398,1.9104,2420.0,2419.8,4.94292266]
[1751071063595,1.9104,2420.0,2419.8,0.8104]
[1751071070803,1.9104,2420.0,2419.9,4.13240216]
[1751071070995,1.704,2420.0,2419.9,5.15910216]
[1751071071308,1.704,2420.0,2419.9,1.0267]
[1751071078745,5.8362314,2420.0,2419.9,0.2064]
[1751071079041,4.13240616,2419.9,2419.6,1.0038]
[1751071079340,7.3783936,2419.8,2419.6,1.0038]
[1751071081442,7.3783936,2419.8,2419.6,0.2084]
[1751071082302,11.51097517,2419.8,2419.6,0.2084]
[1751071082738,13.42109185,2420.0,2419.6,0.2084]
[1751071082897,1.9104,2420.0,2419.7,0.7783]
[1751071083943,1.704,2420.0,2419.7,0.9847]
[1751071085433,1.704,2420.0,2419.9,0.7783]
[1751071087633,1.704,2420.0,2419.9,4.91070216]
[1751071087843,1.704,2420.0,2419.9,0.7783]
[1751071090629,1.704,2420.0,2419.9,4.91070216]
[1751071092054,1.704,2420.0,2419.9,0.7783]
[1751071093646,1.704,2420.4,2419.9,0.7783]
[1751071093846,1.9104,2420.4,2419.9,5.1170952]
[1751071094054,6.04203385,2420.4,2419.9,5.1170952]
[1751071094222,4.13172361,2420.3,2419.9,0.9847]
[1751071095451,13.42041834,2420.4,2419.9,0.9847]
[1751071095842,4.13171984,2420.3,2419.9,0.9847]
[1751071096042,6.88691217,2420.3,2419.9,0.9847]
[1751071096850,2.75519233,2420.3,2419.9,5.11701226]
[1751071097554,6.88696141,2420.3,2419.9,0.9847]
[1751071098054,2.75519233,2420.3,2419.9,5.11709423]
[1751071098354,6.88691883,2420.3,2419.9,0.9847]
[1751071098552,1.61757124,2420.2,2419.9,0.9847]
[1751071100655,13.42042578,2420.4,2419.9,5.11705788]
[1751071101032,1.9104,2420.4,2419.9,0.9847]
[1751071101240,1.704,2420.4,2420.1,4.33833885]
[1751071102137,1.704,2420.4,2420.2,0.7915]
[1751071103961,5.83561267,2420.4,2420.1,0.2064]
[1751071104168,11.24301528,2420.4,2419.8,7.4575]
[1751071104380,0.2064,2420.3,2419.9,0.2064]
[1751071104863,7.3783936,2420.1,2419.6,0.7935]
[1751071105090,0.73783936,2420.0,2419.6,0.2084]
[1751071105360,0.73783936,2420.0,2419.6,0.002]
[1751071105361,4.95134372,2419.7,2419.6,0.002]
[1751071105561,5.15774372,2419.7,2419.6,0.002]
[1751071106764,6.32276987,2419.7,2419.6,0.002]
[1751071109768,2.19002615,2419.7,2419.6,0.002]
[1751071109965,1.025,2419.7,2419.6,0.002]
[1751071110168,5.15774372,2419.7,2419.6,0.002]
[1751071157069,4.33914372,2419.7,2419.6,0.002]
[1751071158835,51.78884372,2419.7,2419.6,0.002]
[1751071161555,22.09185334,2419.7,2419.6,0.002]
[1751071161757,55.62243543,2419.7,2419.6,0.002]
[1751071162376,28.03882903,2419.7,2419.6,0.002]
[1751071164888,27.25412903,2419.7,2419.6,0.002]
[1751071165892,26.95111941,2419.7,2419.6,0.002]
[1751071170075,27.73511941,2419.7,2419.6,0.002]
[1751071172701,58.05275836,2419.7,2419.6,0.002]
[1751071174518,27.26875836,2419.7,2419.6,0.002]
[1751071182631,26.95111941,2419.7,2419.6,0.002]
[1751071184650,24.74084294,2419.7,2419.6,0.002]
[1751071186622,25.04486347,2419.7,2419.6,0.002]
[1751071189942,24.74084294,2419.7,2419.6,0.002]
[1751071194356,21.21026085,2419.7,2419.6,0.002]
[1751071194561,27.87426085,2419.7,2419.6,0.002]
[1751071209076,21.21026085,2419.7,2419.6,0.002]
[1751071209272,27.87326085,2419.7,2419.6,0.002]
[1751071210852,6.04014372,2419.7,2419.6,0.8291]
[1751071211088,11.20826085,2419.7,2419.6,0.8291]
[1751071213797,7.07551713,2419.7,2419.6,0.8291]
[1751071214008,0.2064,2420.1,2419.6,4.13484828]
[1751071214298,5.37451713,2420.1,2419.7,0.8271]
[1751071214598,5.16811713,2419.9,2419.7,0.8271]
[1751071216666,4.13225896,2420.0,2419.7,0.8271]
[1751071216999,11.71758194,2420.1,2419.7,0.8271]
[1751071217593,7.58551097,2420.1,2419.7,4.13271358]
[1751071217796,15.75397334,2420.2,2419.8,0.8271]
[1751071217797,11.622,2420.2,2419.8,0.8271]
[1751071217995,11.8284,2420.2,2419.8,1.0335]
[1751071218201,11.8284,2420.2,2419.9,0.8271]
[1751071219796,15.96032656,2420.2,2419.9,0.8271]
[1751071220684,11.8284,2420.2,2419.9,0.8271]
[1751071220872,10.1274,2420.2,2419.9,0.8271]
[1751071221202,1.7,2420.3,2420.2,0.8271]
[1751071221906,1.7,2420.3,2420.2,4.13188992]
[1751071222226,5.83105532,2420.7,2420.3,0.7617]
[1751071225405,4.13134162,2420.6,2420.3,0.7617]
[1751071227165,13.21019957,2420.7,2420.3,0.7617]
[1751071228447,9.07911097,2420.7,2420.4,0.7599]
[1751071228651,13.21015802,2420.7,2420.4,0.7599]
[1751071230655,4.13123471,2420.6,2420.4,0.7599]
[1751071231151,1.7,2420.7,2420.4,0.7599]
[1751071231450,0.002,2420.9,2420.8,14.89076582]
[1751071231616,0.002,2420.9,2420.8,21.54976582]
[1751071231817,0.002,2420.9,2420.8,22.30616582]
[1751071232737,0.002,2420.9,2420.8,15.64716582]
[1751071232938,0.002,2420.9,2420.8,24.00616582]
[1751071236469,0.002,2420.9,2420.8,15.64716582]
[1751071236770,0.002,2420.9,2420.8,22.30616582]
[1751071238586,0.002,2420.9,2420.8,21.75516582]
[1751071239877,0.002,2420.9,2420.8,15.09716582]
[1751071240091,0.002,2420.9,2420.8,21.75516582]
[1751071240773,0.002,2420.9,2420.8,15.09716582]
[1751071240990,0.002,2420.9,2420.8,21.75516582]
[1751071241882,0.002,2420.9,2420.8,15.09716582]
[1751071242190,0.002,2420.9,2420.8,7.6233]
[1751071242346,0.002,2420.9,2420.8,11.75416582]
[1751071244248,0.002,2420.9,2420.8,11.75516582]
[1751071245174,0.002,2420.9,2420.8,5.09716582]
[1751071245478,0.002,2420.9,2420.8,11.75416582]
[1751071246042,0.002,2420.9,2420.8,5.09716582]
[1751071246376,0.002,2420.9,2420.8,11.75416582]
[1751071247075,0.002,2420.9,2420.8,5.09716582]
[1751071247300,0.002,2420.9,2420.8,11.75416582]
[1751071247506,0.002,2420.9,2420.8,11.75316582]
[1751071261584,0.002,2420.9,2420.8,5.09716582]
[1751071261785,0.002,2420.9,2420.8,7.6223]
[1751071261989,0.002,2420.9,2420.8,11.75316582]
[1751071262205,0.002,2420.9,2420.8,10.99326582]
[1751071262424,0.002,2420.9,2420.5,4.13128875]
[1751071262602,1.5007111,2420.9,2420.6,6.8624]
[1751071263346,1.5007111,2420.9,2420.6,10.9935902]
[1751071264432,0.7622,2420.9,2420.6,6.8624]
[1751071265740,0.7622,2420.9,2420.7,6.656]
[1751071265949,0.7622,2420.9,2420.6,0.2064]
[1751071266102,0.7622,2420.9,2420.7,6.656]
[1751071267345,0.7622,2420.9,2420.6,4.33751936]
[1751071267633,0.7622,2420.9,2420.7,6.656]
[1751071274657,0.7622,2420.9,2420.6,4.33757362]
[1751071274835,0.7622,2420.9,2420.7,6.656]
[1751071276055,7.37911097,2420.8,2420.6,0.2064]
[1751071276257,0.7795,2420.5,2420.0,0.2064]
[1751071276425,0.2064,2420.6,2420.2,4.1318737]
[1751071276625,0.2064,2420.6,2420.1,11.56957974]
[1751071276929,0.2064,2420.6,2420.2,4.1318645]
[1751071277128,0.2064,2420.6,2420.1,11.5695893]
[1751071277334,0.2064,2420.6,2420.2,4.13187888]
[1751071279232,4.33760782,2420.6,2420.1,4.91360188]
[1751071279562,0.2064,2420.6,2420.3,4.13170516]
[1751071279859,0.2064,2420.6,2420.2,10.78881027]
[1751071281664,0.2064,2420.6,2420.3,4.1316978]
[1751071282136,0.2064,2420.6,2420.2,6.657]
[1751071282334,0.2064,2420.6,2420.3,4.13171393]
[1751071282653,0.2064,2420.6,2420.2,10.78879055]
[1751071282852,0.2064,2420.6,2420.3,4.1316982]
[1751071283239,0.002,2420.9,2420.3,0.7725]
[1751071283446,0.2084,2420.9,2420.5,4.33762886]
[1751071283663,0.2084,2420.9,2420.6,6.657]
[1751071284903,0.2084,2420.9,2420.6,10.78816308]
[1751071285068,0.2084,2420.9,2420.7,4.13097168]
[1751071285257,0.2084,2420.9,2420.6,10.78811381]
[1751071285659,0.002,2420.9,2420.6,6.657]
[1751071285853,0.002,2420.9,2420.6,7.6359]
[1751071286059,0.002,2420.9,2420.6,11.76706409]
[1751071286450,0.002,2420.9,2420.7,4.13102278]
[1751071287379,0.002,2420.9,2420.8,4.13086582]
[1751071289059,0.002,2420.9,2420.7,4.13095113]
[1751071292086,0.002,2420.9,2420.7,4.13101041]
[1751071293196,0.002,2420.9,2420.6,11.76705324]
[1751071294593,0.002,2420.9,2420.7,4.13102976]
[1751071297813,0.002,2420.9,2420.8,6.656]
[1751071299421,0.002,2420.9,2420.8,10.78686582]
[1751071303814,0.002,2420.9,2420.8,6.656]
[1751071315927,0.002,2420.9,2420.8,10.78686582]
[1751071319836,0.002,2420.9,2420.8,6.656]
[1751071320840,0.002,2420.9,2420.8,10.78686582]
[1751071325427,0.002,2420.9,2420.8,6.656]
[1751071325930,0.002,2420.9,2420.8,10.78686582]
[1751071327541,0.002,2420.9,2420.8,11.75526582]
[1751071327740,0.002,2420.9,2420.8,7.6244]
[1751071328058,0.002,2420.9,2420.8,6.8614]
[1751071328849,0.002,2420.9,2420.8,10.99226582]
[1751071331066,0.002,2420.9,2420.8,4.33726582]
[1751071331269,0.002,2420.9,2420.8,10.99226582]
[1751071334377,0.002,2420.9,2420.8,6.8614]
[1751071334584,0.002,2420.9,2420.8,0.2064]
[1751071334744,0.002,2420.9,2420.8,6.655]
[1751071335789,0.002,2420.9,2420.7,0.2064]
[1751071335944,0.002,2420.9,2420.8,6.655]
[1751071339676,0.002,2420.9,2420.8,10.78586582]
[1751071340379,0.002,2420.9,2420.8,6.655]
[1751071340977,0.002,2420.9,2420.8,10.78586582]
[1751071341284,0.002,2420.9,2420.8,6.655]
[1751071342195,0.002,2420.9,2420.8,10.78586582]
[1751071342893,0.002,2420.9,2420.8,11.60156582]
[1751071346188,0.002,2420.9,2420.8,0.8157]
[1751071346491,0.002,2420.9,2420.8,6.655]
[1751071347381,0.002,2420.9,2420.8,10.78586582]
[1751071348168,0.002,2420.9,2420.8,11.53676582]
[1751071348493,0.002,2420.9,2420.8,11.74316582]
[1751071352995,0.002,2420.9,2420.8,22.29316582]
[1751071353381,0.002,2420.9,2420.8,29.67227679]
[1751071353583,0.002,2420.9,2420.8,22.29316582]
[1751071353982,0.002,2420.9,2420.8,22.6087042]
[1751071354819,0.002,2420.9,2420.8,23.99116582]
[1751071367849,0.002,2420.9,2420.8,15.63816582]
[1751071368011,0.002,2420.9,2420.8,23.99116582]
[1751071372051,0.002,2420.9,2420.8,15.63816582]
[1751071372254,0.002,2420.9,2420.8,23.99316582]
[1751071381486,0.002,2420.9,2420.8,15.63816582]
[1751071381690,0.002,2420.9,2420.8,23.99016582]
[1751071385683,0.002,2420.9,2420.8,0.2064]
[1751071386082,0.002,2420.9,2420.8,6.8594]
[1751071386662,0.7785,2420.9,2420.8,6.8594]
[1751071388774,0.002,2420.9,2420.8,10.99026582]